bitfinex/quotes_ETHUSD_20251128
["timestamp","ask_amount","ask_price","bid_price","bid_amount"]
[1764332485572,0.0012,3043.1,3042.9,0.72559411]
[1764332485857,0.78770445,3043.0,3042.9,0.72559411]
[1764332486175,1.27080445,3043.0,3042.9,0.72559411]
[1764332487969,1.27080445,3043.0,3042.9,4.0119328]
[1764332489367,0.79080445,3043.0,3042.9,4.92596479]
[1764332490025,1.27080445,3043.0,3042.9,4.92596479]
[1764332491534,1.27080445,3043.0,3042.9,4.0119328]
[1764332492143,1.27080445,3043.0,3042.9,3.28633869]
[1764332494537,1.27080445,3043.0,3042.8,3.49244276]
[1764332494741,1.13930445,3042.9,3042.8,3.49244276]
[1764332496258,4.42564314,3042.9,3042.8,0.001]
[1764332496441,5.13473341,3042.9,3042.8,0.001]
[1764332497034,1.84839472,3042.9,3042.8,0.001]
[1764332498858,1.84759472,3042.9,3042.8,0.001]
[1764332499062,5.13393341,3042.9,3042.8,0.001]
[1764332500045,5.23313341,3042.9,3042.8,0.001]
[1764332500657,1.84759472,3042.9,3042.8,0.001]
[1764332501231,5.13393341,3042.9,3042.8,0.001]
[1764332503051,5.13297411,3042.9,3042.8,0.001]
[1764332503634,0.65850445,3042.9,3042.8,0.001]
[1764332503838,0.47120445,3042.9,3042.8,0.001]
[1764332504070,0.93380445,3042.9,3042.8,0.001]
[1764332504255,1.12690445,3042.9,3042.8,0.001]
[1764332509668,4.51244314,3042.9,3042.8,0.001]
[1764332510166,5.62642549,3042.9,3042.8,0.001]
[1764332510644,6.51158921,3042.9,3042.8,0.001]
[1764332511041,6.3520196,3042.9,3042.8,0.001]
[1764332511374,17.7757756,3042.9,3042.8,0.001]
[1764332511671,6.5600196,3042.9,3042.8,0.001]
[1764332512044,8.32969822,3042.9,3042.8,0.001]
[1764332512568,13.00334549,3042.9,3042.8,0.001]
[1764332513071,11.23366687,3042.9,3042.8,0.001]
[1764332513372,13.00334549,3042.9,3042.8,0.001]
[1764332514172,11.23366687,3042.9,3042.8,0.001]
[1764332516277,12.6718196,3042.9,3042.8,0.001]
[1764332516446,12.9790196,3042.9,3042.8,0.001]
[1764332518754,17.65266687,3042.9,3042.8,0.001]
[1764332519078,18.83073911,3042.9,3042.8,0.001]
[1764332519445,24.75363177,3042.9,3042.8,0.001]
[1764332519652,23.85762377,3042.9,3042.8,0.001]
[1764332519878,25.62730239,3042.9,3042.8,0.001]
[1764332520075,25.13783674,3042.9,3042.8,0.001]
[1764332520252,23.0241226,3042.9,3042.8,0.001]
[1764332520449,23.0274986,3042.9,3042.8,0.001]
[1764332521259,17.77850787,3042.9,3042.8,0.001]
[1764332521571,17.75350787,3042.9,3042.8,0.001]
[1764332522372,48.26009985,3042.9,3042.8,0.001]
[1764332522566,21.65142265,3042.5,3042.4,0.001]
[1764332522770,28.3611351,3042.5,3042.4,0.001]
[1764332522949,23.03747383,3042.5,3042.4,0.001]
[1764332523150,23.16839988,3042.5,3042.4,0.001]
[1764332523373,28.3177814,3042.5,3042.4,0.001]
[1764332523574,33.1260314,3042.5,3042.4,0.001]
[1764332523751,32.5719104,3042.5,3042.4,0.001]
[1764332523952,32.89269514,3042.5,3042.4,0.001]
[1764332524361,30.67745487,3042.5,3042.4,0.001]
[1764332524560,30.78619987,3042.5,3042.4,0.001]
[1764332525584,30.78619987,3042.5,3042.3,0.001]
[1764332525585,14.86988211,3042.4,3042.3,0.001]
[1764332525760,20.73509916,3042.4,3042.3,0.001]
[1764332526076,24.51144358,3042.4,3042.3,0.001]
[1764332526253,20.77109958,3042.4,3042.3,0.001]
[1764332526651,24.07484758,3042.4,3042.3,0.001]
[1764332527249,23.36636923,3042.4,3042.3,0.001]
[1764332527455,24.07265709,3042.4,3042.3,0.001]
[1764332527679,22.42794009,3042.4,3042.3,0.001]
[1764332528251,21.53602209,3042.4,3042.3,0.001]
[1764332528450,15.88960819,3042.4,3042.3,0.001]
[1764332528656,16.87985067,3042.4,3042.3,0.001]
[1764332529186,12.44406967,3042.4,3042.3,0.001]
[1764332529494,11.16857108,3042.4,3042.3,0.001]
[1764332529794,12.10216519,3042.4,3042.3,0.001]
[1764332529958,12.50766919,3042.4,3042.3,0.001]
[1764332530157,12.10216519,3042.4,3042.3,0.001]
[1764332530388,11.37657108,3042.4,3042.3,0.001]
[1764332530731,12.50766919,3042.4,3042.3,0.001]
[1764332530893,11.33337508,3042.4,3042.3,0.001]
[1764332531099,10.62708722,3042.4,3042.3,0.4785]
[1764332532256,6.72670445,3042.4,3042.3,0.4785]
[1764332532564,10.01358322,3042.4,3042.3,0.9602]
[1764332532776,10.01358322,3042.4,3042.3,0.4785]
[1764332534864,10.71981092,3042.4,3042.3,0.4785]
[1764332535064,11.19101092,3042.4,3042.3,0.001]
[1764332535367,10.71981092,3042.4,3042.3,0.4785]
[1764332535980,7.43293215,3042.4,3042.3,0.9602]
[1764332536376,0.30770445,3042.4,3042.3,0.9602]
[1764332536559,0.30770445,3042.4,3042.3,4.62562123]
[1764332536761,0.002,3042.9,3042.3,7.91260804]
[1764332536962,0.002,3042.9,3042.8,0.4775]
[1764332537164,0.30873182,3042.9,3042.8,0.4775]
[1764332537384,0.30873182,3042.9,3042.8,0.9592]
[1764332538404,0.30873182,3042.9,3042.8,0.4775]
[1764332538565,0.40793182,3042.9,3042.4,0.4817]
[1764332538761,0.30673182,3042.8,3042.4,0.4817]
[1764332538996,0.5724,3042.9,3042.3,0.001]
[1764332538997,0.30673182,3042.7,3042.3,0.001]
[1764332539176,0.30673182,3042.6,3042.3,0.001]
[1764332539492,0.30673182,3042.5,3042.3,0.001]
[1764332539671,0.30673182,3042.4,3042.3,0.001]
[1764332540172,0.30673182,3042.4,3042.3,0.4568]
[1764332540765,0.30673182,3042.4,3042.3,0.001]
[1764332540766,0.75923182,3042.4,3042.3,0.001]
[1764332540982,3.69281059,3042.4,3042.3,0.001]
[1764332541181,1.01389769,3042.4,3042.3,0.4568]
[1764332541383,1.14557474,3042.4,3042.3,0.4568]
[1764332541567,4.43245351,3042.4,3042.3,0.4568]
[1764332542368,4.43245351,3042.4,3042.3,0.001]
[1764332542666,5.77625751,3042.4,3042.3,0.001]
[1764332544070,5.38965751,3042.4,3042.3,0.001]
[1764332544395,4.93715751,3042.4,3042.3,0.001]
[1764332544791,5.38965751,3042.4,3042.3,0.001]
[1764332545572,5.87545751,3042.4,3042.3,0.001]
[1764332546591,5.87745751,3042.4,3042.3,0.001]
[1764332547300,5.87665751,3042.4,3042.3,0.001]
[1764332548092,4.93835751,3042.4,3042.3,0.4568]
[1764332548270,5.29165751,3042.4,3042.3,0.001]
[1764332548681,4.83915751,3042.4,3042.3,0.001]
[1764332549080,1.14677474,3042.4,3042.3,0.9172]
[1764332549297,1.14677474,3042.4,3042.3,4.20418681]
[1764332549298,0.43960887,3042.4,3042.3,4.20418681]
[1764332549505,0.30793182,3042.4,3042.3,4.95341451]
[1764332549805,0.30793182,3042.4,3042.3,1.6664277]
[1764332550177,0.30793182,3042.4,3042.3,4.95341451]
[1764332553116,0.30793182,3042.4,3042.3,1.6664277]
[1764332553313,0.30793182,3042.4,3042.3,0.9172]
[1764332555616,0.30793182,3042.4,3042.3,4.20418681]
[1764332555818,0.30793182,3042.4,3042.3,0.9172]
[1764332556511,0.30793182,3042.4,3042.3,0.4568]
[1764332556732,0.30793182,3042.4,3042.3,0.9172]
[1764332558619,0.30793182,3042.4,3042.3,0.4568]
[1764332559402,0.30793182,3042.4,3042.3,0.9172]
[1764332559613,0.30793182,3042.4,3042.3,1.33772357]
[1764332560122,0.30793182,3042.4,3042.3,0.4568]
[1764332560296,0.30793182,3042.4,3042.3,0.9172]
[1764332562488,0.30793182,3042.4,3042.3,0.001]
[1764332562894,0.30793182,3042.4,3042.3,0.4936]
[1764332563596,0.30793182,3042.4,3042.3,0.9472]
[1764332563808,0.30793182,3042.4,3042.3,1.37072923]
[1764332563992,0.30793182,3042.4,3042.3,0.91712923]
[1764332564194,0.30793182,3042.4,3042.3,0.4936]
[1764332564792,0.79513182,3042.4,3042.3,0.001]
[1764332565406,4.53531059,3042.4,3042.3,0.001]
[1764332565639,5.24410443,3042.4,3042.3,0.001]
[1764332565806,1.01672566,3042.4,3042.3,0.4936]
[1764332566197,0.30793182,3042.4,3042.3,0.4936]
[1764332566725,0.30793182,3042.4,3042.3,4.65772023]
[1764332567233,0.25793182,3042.4,3042.3,4.65772023]
[1764332567897,0.25793182,3042.4,3042.3,1.37073342]
[1764332568093,0.25793182,3042.4,3042.3,0.4936]
[1764332568320,1.45408629,3042.4,3042.3,0.001]
[1764332568526,0.96688629,3042.4,3042.3,0.4936]
[1764332568829,0.25793182,3042.4,3042.3,0.4936]
[1764332569038,0.96688629,3042.4,3042.3,0.001]
[1764332569332,1.45408629,3042.4,3042.3,0.001]
[1764332570042,4.74096506,3042.4,3042.3,0.001]
[1764332571027,5.19426506,3042.4,3042.3,0.001]
[1764332571611,5.19346506,3042.4,3042.3,0.001]
[1764332574037,4.74016506,3042.4,3042.3,0.001]
[1764332574198,1.45328629,3042.4,3042.3,0.001]
[1764332574398,0.96608629,3042.4,3042.3,0.4936]
[1764332578237,0.71095447,3042.4,3042.3,0.4936]
[1764332578531,3.99783324,3042.4,3042.3,0.4936]
[1764332578834,3.99783324,3042.4,3042.3,0.001]
[1764332578835,4.48503324,3042.4,3042.3,0.001]
[1764332579137,1.19815447,3042.4,3042.3,0.001]
[1764332580337,4.48503324,3042.4,3042.3,0.001]
[1764332580509,1.19815447,3042.4,3042.3,0.001]
[1764332580903,5.34383724,3042.4,3042.3,0.001]
[1764332581142,7.34492994,3042.4,3042.3,0.001]
[1764332581342,6.16863135,3042.4,3042.3,0.001]
[1764332581647,12.58763135,3042.4,3042.3,0.001]
[1764332582216,13.77050758,3042.4,3042.3,0.001]
[1764332582418,9.03842481,3042.4,3042.3,0.001]
[1764332582603,12.32530358,3042.4,3042.3,0.001]
[1764332582809,11.30396251,3042.4,3042.3,0.001]
[1764332583409,11.79116251,3042.4,3042.3,0.001]
[1764332583625,12.09920426,3042.4,3042.3,0.001]
[1764332584446,11.21207499,3042.4,3042.3,0.001]
[1764332584837,7.43799622,3042.4,3042.3,0.4936]
[1764332586540,7.43799622,3042.4,3042.3,0.9472]
[1764332586840,6.72904175,3042.4,3042.3,4.23418681]
[1764332587050,6.72904175,3042.4,3042.3,0.9472]
[1764332587422,6.72904175,3042.4,3042.3,4.23418681]
[1764332587822,6.72904175,3042.4,3042.3,0.9472]
[1764332589339,7.43857017,3042.4,3042.3,1.37072288]
[1764332590787,1.01957017,3042.4,3042.3,1.37072288]
[1764332592277,1.01957017,3042.4,3042.3,4.65770969]
[1764332592429,0.31004175,3042.4,3042.3,4.86570969]
[1764332592628,0.79544175,3042.4,3042.3,0.63252288]
[1764332592871,1.01949505,3042.4,3042.3,0.7039]
[1764332594130,2.00229505,3042.4,3042.3,0.209]
[1764332594967,1.51149505,3042.4,3042.3,0.209]
[1764332595849,1.51069505,3042.4,3042.3,0.209]
[1764332597881,1.01869505,3042.4,3042.3,3.76758681]
[1764332598052,0.30924175,3042.4,3042.3,4.93396501]
[1764332603458,0.30924175,3042.4,3042.3,4.68116501]
[1764332603791,0.30924175,3042.4,3042.3,5.14196501]
[1764332605753,0.30924175,3042.4,3042.3,0.001]
[1764332605754,1.29204175,3042.4,3042.3,0.001]
[1764332606579,0.80124175,3042.4,3042.3,0.001]
[1764332607085,2.0007055,3042.4,3042.3,0.001]
[1764332611189,5.28758427,3042.4,3042.3,0.001]
[1764332612395,5.69308827,3042.4,3042.3,0.001]
[1764332612569,6.58021754,3042.4,3042.3,0.001]
[1764332613691,5.69308827,3042.4,3042.3,0.001]
[1764332614156,2.30957189,3042.4,3042.3,0.001]
[1764332614355,6.57925066,3042.4,3042.3,0.001]
[1764332616980,6.17374666,3042.4,3042.3,0.001]
[1764332617570,6.27294666,3042.4,3042.3,0.001]
[1764332618555,6.67845066,3042.4,3042.3,0.001]
[1764332618754,22.34747238,3042.4,3042.3,0.001]
[1764332619055,0.504704,3042.2,3042.1,0.001]
[1764332619389,7.25972773,3042.2,3042.1,0.001]
[1764332619588,7.75052773,3042.2,3042.1,0.001]
[1764332619763,7.88223643,3042.2,3042.1,0.001]
[1764332619960,7.78303643,3042.2,3042.1,0.001]
[1764332620293,4.39012051,3042.2,3042.1,0.001]
[1764332620590,3.93281181,3042.2,3042.1,0.001]
[1764332620795,3.06000361,3042.2,3042.1,0.001]
[1764332621567,6.34630584,3042.2,3042.1,0.001]
[1764332622896,7.52651404,3042.2,3042.1,0.001]
[1764332623886,6.24690584,3042.2,3042.1,0.001]
[1764332625291,6.34630584,3042.2,3042.1,0.001]
[1764332626694,6.03905672,3042.2,3042.1,0.001]
[1764332627594,6.34599774,3042.2,3042.1,0.001]
[1764332627796,11.01852186,3042.2,3042.1,0.001]
[1764332628981,15.65223606,3042.2,3042.1,0.001]
[1764332629174,12.19873006,3042.2,3042.1,0.001]
[1764332629486,11.15023056,3042.2,3042.1,0.001]
[1764332630599,17.56923056,3042.2,3042.1,0.001]
[1764332631892,20.61317456,3042.2,3042.1,0.001]
[1764332632570,19.68655456,3042.2,3042.1,0.001]
[1764332633197,21.45757697,3042.2,3042.1,0.001]
[1764332633570,19.34025297,3042.2,3042.1,0.001]
[1764332633971,17.56923056,3042.2,3042.1,0.001]
[1764332634192,19.34025297,3042.2,3042.1,0.001]
[1764332634581,19.34332712,3042.2,3042.1,0.001]
[1764332636671,17.57230471,3042.2,3042.1,0.001]
[1764332636870,17.57430471,3042.2,3042.1,0.001]
[1764332638169,17.57430471,3042.2,3042.0,0.001]
[1764332638170,31.13109811,3042.1,3042.0,0.001]
[1764332638372,18.78812865,3042.0,3041.9,0.001]
[1764332638595,22.8045238,3042.0,3041.9,0.001]
[1764332638900,22.93626504,3042.0,3041.9,0.001]
[1764332639068,20.43542501,3042.0,3041.9,0.001]
[1764332639274,20.64342501,3042.0,3041.9,0.001]
[1764332640083,13.34154374,3042.0,3041.9,0.001]
[1764332640295,11.18825336,3042.0,3041.9,0.001]
[1764332641016,11.18871952,3042.0,3041.9,0.001]
[1764332641216,5.42701725,3042.0,3041.9,0.001]
[1764332641391,6.27995194,3042.0,3041.9,0.001]
[1764332641587,5.62284846,3042.0,3041.9,0.001]
[1764332641788,6.34844257,3042.0,3041.9,0.001]
[1764332643216,12.76744257,3042.0,3041.9,0.001]
[1764332644317,12.76664257,3042.0,3041.9,0.001]
[1764332646192,14.53763512,3042.0,3041.9,0.001]
[1764332646592,11.98414257,3042.0,3041.9,0.4826]
[1764332646792,12.19214257,3042.0,3041.9,0.936]
[1764332647017,12.19214257,3042.0,3041.9,0.4826]
[1764332648106,13.96313512,3042.0,3041.9,0.4826]
[1764332648707,13.96313512,3042.0,3041.9,0.001]
[1764332649719,14.43823512,3042.0,3041.9,0.001]
[1764332650096,13.96313512,3042.0,3041.9,0.4826]
[1764332650425,12.19214257,3042.0,3041.9,0.4826]
[1764332655131,14.43033512,3042.0,3041.9,0.001]
[1764332655326,13.96513512,3042.0,3041.9,0.4593]
[1764332655711,12.19414257,3042.0,3041.9,0.9522]
[1764332656425,12.19414257,3042.0,3041.9,0.4593]
[1764332661003,11.98614257,3042.0,3041.9,0.4593]
[1764332661221,12.76074257,3042.0,3041.9,0.001]
[1764332661404,13.25524257,3042.0,3041.9,0.001]
[1764332661723,15.02623512,3042.0,3041.9,0.001]
[1764332665727,14.53173512,3042.0,3041.9,0.001]
[1764332667739,12.76074257,3042.0,3041.9,0.001]
[1764332668134,14.53173512,3042.0,3041.9,0.001]
[1764332668531,14.53093512,3042.0,3041.9,0.001]
[1764332669846,12.66054257,3042.0,3041.9,0.001]
[1764332670814,12.75994257,3042.0,3041.9,0.001]
[1764332671427,13.25444257,3042.0,3041.9,0.001]
[1764332673547,12.75994257,3042.0,3041.9,0.001]
[1764332674747,13.25444257,3042.0,3041.9,0.001]
[1764332675123,1.13109811,3041.9,3041.7,0.001]
[1764332675319,1.01579225,3041.8,3041.7,0.001]
[1764332675519,4.30331937,3041.8,3041.7,0.001]
[1764332675736,4.79721937,3041.8,3041.7,0.001]
[1764332676243,6.57404031,3041.8,3041.7,0.001]
[1764332676827,4.79721937,3041.8,3041.7,0.001]
[1764332677641,4.79721937,3041.8,3041.7,0.4593]
[1764332679515,4.79829569,3041.8,3041.7,0.4593]
[1764332680150,4.79829569,3041.8,3041.7,0.001]
[1764332680348,5.26549569,3041.8,3041.7,0.001]
[1764332680523,9.47389396,3041.8,3041.7,0.001]
[1764332681059,9.96679396,3041.8,3041.7,0.001]
[1764332681264,10.37229796,3041.8,3041.7,0.001]
[1764332681428,10.47169796,3041.8,3041.7,0.001]
[1764332681927,10.96289796,3041.8,3041.7,0.001]
[1764332682428,12.7397189,3041.8,3041.7,0.001]
[1764332682630,13.46531301,3041.8,3041.7,0.001]
[1764332682840,11.68849207,3041.8,3041.7,0.001]
[1764332685353,13.98088007,3041.8,3041.7,0.001]
[1764332685854,20.39988007,3041.8,3041.7,0.001]
[1764332686255,22.69944407,3041.8,3041.7,0.001]
[1764332686556,1.23049811,3041.7,3041.6,0.001]
[1764332686745,2.43756668,3041.7,3041.6,0.001]
[1764332687139,2.56929924,3041.7,3041.6,0.001]
[1764332687346,3.06049924,3041.7,3041.6,0.001]
[1764332687546,3.26849924,3041.7,3041.6,0.001]
[1764332689352,6.55613444,3041.7,3041.6,0.001]
[1764332690229,0.0994,3041.6,3041.5,0.001]
[1764332690430,6.28176684,3041.6,3041.5,0.001]
[1764332691045,6.41349766,3041.6,3041.5,0.001]
[1764332691247,8.18770746,3041.6,3041.5,0.001]
[1764332691449,15.09790746,3041.6,3041.5,0.001]
[1764332691751,13.32369766,3041.6,3041.5,0.001]
[1764332692257,16.61144095,3041.6,3041.5,0.001]
[1764332692754,16.61115377,3041.6,3041.5,0.001]
[1764332693455,17.01665777,3041.6,3041.5,0.001]
[1764332694455,22.12479677,3041.6,3041.5,0.001]
[1764332694660,20.98105877,3041.6,3041.5,0.001]
[1764332694959,19.28711077,3041.6,3041.5,0.001]
[1764332695356,17.01665777,3041.6,3041.5,0.001]
[1764332695563,21.15687677,3041.6,3041.5,0.001]
[1764332696259,16.4812785,3041.6,3041.5,0.001]
[1764332696436,17.01665777,3041.6,3041.5,0.001]
[1764332696631,17.01863732,3041.6,3041.5,0.001]
[1764332697451,16.52743732,3041.6,3041.5,0.001]
[1764332698332,19.94042532,3041.6,3041.5,0.001]
[1764332698659,17.01863732,3041.6,3041.5,0.001]
[1764332699532,17.01863732,3041.6,3041.5,0.048118]
[1764332699735,16.52743732,3041.6,3041.5,0.048118]
[1764332699934,18.30067491,3041.6,3041.5,0.048118]
[1764332700144,16.52743732,3041.6,3041.5,0.048118]
[1764332700344,18.30068274,3041.6,3041.5,0.048118]
[1764332701558,18.99988274,3041.6,3041.5,0.048118]
[1764332701864,30.74609757,3041.6,3041.5,0.048118]
[1764332702158,29.88401857,3041.6,3041.5,0.048118]
[1764332702745,33.80444557,3041.6,3041.5,0.048118]
[1764332702946,23.72481632,3041.6,3041.5,0.048118]
[1764332703666,23.08419032,3041.6,3041.5,0.048118]
[1764332703868,31.37141032,3041.6,3041.5,0.048118]
[1764332704064,31.01409832,3041.6,3041.5,0.048118]
[1764332704737,17.22663732,3041.6,3041.5,0.048118]
[1764332704943,33.98288632,3041.6,3041.5,0.048118]
[1764332705467,14.39065649,3041.5,3041.4,0.001]
[1764332705668,16.09143788,3041.5,3041.4,0.001]
[1764332705874,16.59773788,3041.5,3041.4,0.001]
[1764332706063,10.7672941,3041.5,3041.4,0.001]
[1764332706842,19.9928761,3041.5,3041.4,0.001]
[1764332707344,18.4017931,3041.5,3041.4,0.001]
[1764332707943,19.7937441,3041.5,3041.4,0.001]
[1764332708745,26.2127441,3041.5,3041.4,0.001]
[1764332708941,23.55793911,3041.4,3041.3,0.001]
[1764332709145,28.94047999,3041.4,3041.3,0.001]
[1764332709373,19.47939411,3041.1,3040.7,0.001]
[1764332709672,25.3635279,3041.1,3040.7,0.001]
[1764332709886,25.8547279,3041.1,3040.7,0.001]
[1764332710040,27.10538861,3041.1,3040.7,0.001]
[1764332710245,27.41328499,3041.1,3040.7,0.001]
[1764332710660,26.00440999,3041.1,3040.7,0.001]
[1764332711060,31.81386399,3041.1,3040.7,0.001]
[1764332711250,35.20214783,3041.1,3040.7,0.001]
[1764332711853,32.67510983,3041.1,3040.7,0.001]
[1764332712054,32.97762783,3041.1,3040.7,0.001]
[1764332712256,32.31597983,3041.1,3040.7,0.001]
[1764332712457,28.57182283,3041.1,3040.7,0.001]
[1764332712686,20.41193983,3041.1,3040.7,0.001]
[1764332712863,32.01035583,3041.1,3040.7,0.001]
[1764332713068,33.89934783,3041.1,3040.7,0.001]
[1764332713264,32.80933883,3041.1,3040.7,0.001]
[1764332714057,34.98659383,3041.1,3040.7,0.001]
[1764332714453,34.20217983,3041.1,3040.7,0.001]
[1764332714663,33.94167383,3041.1,3040.7,0.001]
[1764332714978,18.04682325,3041.1,3040.7,0.001]
[1764332715166,32.91682125,3041.1,3040.7,0.001]
[1764332715767,33.3927545,3041.1,3040.7,0.001]
[1764332716167,40.5846725,3041.1,3040.7,0.001]
[1764332716582,40.58430633,3041.1,3040.7,0.001]
[1764332716880,24.867735,3040.9,3040.7,0.001]
[1764332717052,28.8908071,3040.9,3040.7,0.001]
[1764332717254,29.3429071,3040.9,3040.7,0.001]
[1764332717449,9.39150028,3040.9,3040.7,0.001]
[1764332717676,6.02313828,3040.9,3040.7,0.001]
[1764332717865,9.31163839,3040.9,3040.7,0.001]
[1764332718072,15.06295839,3040.9,3040.7,0.001]
[1764332718658,15.51585839,3040.9,3040.7,0.001]
[1764332718874,15.51585839,3040.9,3039.8,0.1248]
[1764332718875,23.514494,3040.3,3038.9,0.1248]
[1764332719191,18.11068493,3040.1,3039.1,0.455]
[1764332719379,18.11068493,3040.1,3038.9,0.1248]
[1764332719380,11.37564821,3040.1,3039.5,0.455]
[1764332719575,11.82854821,3040.1,3039.5,0.455]
[1764332719769,15.11791369,3040.1,3039.5,0.455]
[1764332719967,14.66501369,3040.1,3039.5,0.455]
[1764332720166,17.22267969,3040.1,3038.9,0.1248]
[1764332720490,0.505104,3039.4,3039.3,0.455]
[1764332720780,0.30753021,3039.4,3039.3,0.455]
[1764332721080,1.29607462,3039.4,3039.3,0.9119]
[1764332721456,1.39567462,3039.4,3039.3,0.9119]
[1764332721657,2.102907,3039.4,3039.3,0.9119]
[1764332721970,5.39303005,3039.4,3039.3,0.9119]
[1764332722484,5.79853405,3039.4,3039.3,0.4569]
[1764332723053,5.69822235,3039.4,3039.3,0.9119]
[1764332723271,4.99098997,3039.4,3039.3,0.9119]
[1764332723457,5.79753311,3039.4,3039.3,0.9119]
[1764332725388,11.20070504,3039.4,3039.3,0.4569]
[1764332726194,3.3901561,3039.0,3038.9,0.1248]
[1764332726382,3.69697461,3039.0,3038.9,0.1248]
[1764332726586,3.69697461,3039.0,3038.9,0.5817]
[1764332726770,4.68563956,3039.0,3038.9,0.5817]
[1764332726965,4.68563956,3039.0,3038.9,1.0367]
[1764332727366,4.68563956,3039.0,3038.9,1.0377]
[1764332729776,0.0996,3038.9,3038.0,0.1825]
[1764332729979,0.30681851,3038.8,3038.0,0.1825]
[1764332730291,0.40641851,3038.7,3038.0,3.47404524]
[1764332730487,0.0996,3038.5,3038.0,0.1825]
[1764332730690,0.30681851,3038.4,3038.0,0.1825]
[1764332730897,0.208,3038.4,3038.0,0.1825]
[1764332731191,0.30658775,3038.3,3038.0,0.1825]
[1764332731384,0.208,3038.4,3038.0,0.1825]
[1764332731570,0.30655056,3038.3,3038.0,3.47413323]
[1764332731773,0.208,3038.4,3038.0,3.47413323]
[1764332732090,0.30655056,3038.3,3038.0,3.47413323]
[1764332732388,0.208,3038.4,3038.0,0.1825]
[1764332732590,0.30656765,3038.3,3038.0,0.1825]
[1764332732790,0.30656765,3038.2,3038.0,0.1825]
[1764332733087,0.30661351,3038.1,3038.0,0.1825]
[1764332733287,0.30661351,3038.1,3038.0,3.47412714]
[1764332734465,0.30661351,3038.1,3038.0,0.1825]
[1764332734890,0.30661351,3038.1,3038.0,3.47413923]
[1764332735494,0.30661351,3038.1,3038.0,4.19127817]
[1764332735962,0.30661351,3038.1,3038.0,4.22419456]
[1764332737395,1.351e-05,3038.1,3038.0,4.22419456]
[1764332737572,6.42,3038.9,3038.0,10.80747302]
[1764332737774,0.98866495,3039.1,3038.0,7.4829174]
[1764332737978,0.98866495,3039.1,3038.1,1.09826385]
[1764332738183,0.98866495,3039.1,3038.2,0.03291422]
[1764332738380,0.70746879,3039.0,3038.2,0.03291422]
[1764332738584,0.70746879,3039.0,3038.3,6.58262844]
[1764332738770,0.70746879,3039.0,3038.4,0.69446632]
[1764332739595,3.99802529,3039.0,3038.4,0.69446632]
[1764332739774,0.70746879,3038.9,3038.4,0.69446632]
[1764332740776,3.99818332,3038.9,3038.4,0.69446632]
[1764332741006,3.29060705,3039.0,3038.4,3.98566781]
[1764332741204,0.70707866,3038.9,3038.4,3.98566781]
[1764332741392,4.378731,3039.1,3038.5,0.72769731]
[1764332741900,7.66919705,3039.1,3038.5,0.72769731]
[1764332742276,7.66919705,3039.1,3038.4,3.32411354]
[1764332742906,4.378731,3039.1,3038.4,3.32411354]
[1764332743308,7.66919705,3039.1,3038.4,3.32411354]
[1764332743908,4.378731,3039.1,3038.4,3.32411354]
[1764332744078,4.279131,3039.1,3038.4,3.32411354]
[1764332744274,0.98866495,3039.1,3038.5,0.66154176]
[1764332744809,4.2791267,3039.1,3038.5,0.66154176]
[1764332745189,4.2791267,3039.1,3038.5,3.95255465]
[1764332745379,0.002,3039.0,3038.5,3.95255465]
[1764332746875,0.002,3039.0,3038.5,0.66154176]
[1764332747781,0.002,3039.0,3038.4,0.208]
[1764332748381,0.8852176,3039.0,3038.4,0.208]
[1764332748782,0.8832176,3038.9,3038.4,0.208]
[1764332749183,3.29066438,3038.9,3038.4,0.208]
[1764332749594,0.30825355,3038.8,3038.4,0.208]
[1764332749788,0.30825355,3038.7,3038.4,0.34992695]
[1764332750011,0.30825355,3038.6,3038.4,0.34992695]
[1764332750208,0.30825355,3038.5,3038.4,0.34992695]
[1764332750585,0.30825355,3038.5,3038.4,3.29120589]
[1764332750785,0.30825355,3038.5,3038.3,3.49927706]
[1764332750987,0.30825355,3038.4,3038.3,3.49927706]
[1764332751513,0.30825355,3038.4,3038.3,3.49931422]
[1764332751913,0.30825355,3038.4,3038.3,3.84924564]
[1764332753623,0.30825355,3038.4,3038.3,0.55793142]
[1764332754111,0.30825355,3038.4,3038.3,0.208]
[1764332755412,0.30825355,3038.4,3038.3,0.158]
[1764332755825,0.30825355,3038.4,3038.3,3.48222736]
[1764332759725,0.30825355,3038.4,3038.3,0.19091314]
[1764332760022,0.30825355,3038.4,3038.3,0.158]
[1764332760219,0.30825355,3038.4,3038.0,0.1835]
[1764332760415,0.30825355,3038.3,3038.0,0.3915]
[1764332760612,0.30825355,3038.2,3038.0,3.68308284]
[1764332760809,0.30825355,3038.1,3038.0,0.3915]
[1764332762909,0.30825355,3038.1,3038.0,0.001]
[1764332765426,0.30745355,3038.1,3038.0,0.001]
[1764332772913,0.71034505,3038.4,3038.0,0.001]
[1764332773115,0.8832176,3038.7,3038.1,0.2409153]
[1764332773316,0.71034432,3038.6,3038.1,0.2409153]
[1764332773515,0.71034432,3038.5,3038.1,0.2409153]
[1764332773716,0.71034432,3038.4,3038.1,0.2409153]
[1764332773925,0.8832176,3038.7,3038.1,0.92355398]
[1764332774131,0.71035619,3038.6,3038.2,3.29142255]
[1764332774305,0.71035619,3038.5,3038.2,3.29142255]
[1764332774632,0.71035619,3038.4,3038.2,3.29142255]
[1764332774833,4.66931691,3038.7,3038.2,3.29142255]
[1764332775033,0.71038424,3038.6,3038.2,3.29142255]
[1764332775234,0.71038424,3038.5,3038.2,3.29142255]
[1764332775414,0.71038424,3038.4,3038.2,3.29142255]
[1764332775617,0.71038424,3038.3,3038.2,3.29142255]
[1764332776224,0.71038424,3038.3,3038.1,0.208]
[1764332776424,0.8832176,3038.6,3038.1,0.208]
[1764332776730,0.71049186,3038.5,3038.0,0.001]
[1764332776931,0.71049186,3038.4,3038.0,3.32554379]
[1764332777115,0.71049186,3038.3,3038.0,3.32554379]